fUST/lending_fUST_20240416
["ID","MTS","AMOUNT","RATE_DAILY","PERIOD"]
[322686989,1713216650588,-1188.94,0.0003041,7]
[322686990,1713216650598,-500.0,0.0003041,7]
[322686991,1713216650608,-155.871676,0.0003041,2]
[322686992,1713216650618,-151.0,0.0003041,2]
[322686993,1713216650629,-1389.26,0.0003041,7]
[322686994,1713216650640,-602.03,0.0003041,7]
[322686995,1713216650650,-500.0,0.0003041,7]
[322686996,1713216650661,-16462.66,0.0003041,7]
[322686997,1713216650671,-500.0,0.0003041,7]
[322686998,1713216650681,-2347.59,0.0003041,7]
[322686999,1713216650692,-500.0,0.0003041,7]
[322687000,1713216650702,-500.0,0.0003041,7]
[322687001,1713216650712,-500.0,0.0003041,7]
[322687002,1713216650722,-500.0,0.0003041,7]
[322687003,1713216650736,-500.0,0.0003041,7]
[322687004,1713216650747,-500.0,0.0003041,7]
[322687005,1713216650758,-500.0,0.0003041,7]
[322687006,1713216650769,-896.24,0.0003041,7]
[322687007,1713216650780,-2385.91,0.0003041,7]
[322687008,1713216650790,-614.43,0.0003041,7]
[322687009,1713216650801,-500.0,0.0003041,7]
[322687010,1713216650813,-500.0,0.0003041,7]
[322687011,1713216650824,-973.46,0.0003041,7]
[322687012,1713216650835,-257.730305,0.0003041,2]
[322687013,1713216650845,-500.0,0.0003041,7]
[322687014,1713216650856,-904.17,0.0003041,7]
[322687015,1713216650867,-946.87,0.0003041,7]
[322687016,1713216650877,-257.730298,0.0003041,2]
[322687017,1713216650890,-500.0,0.0003041,7]
[322687018,1713216650908,-785.29,0.0003041,7]
[322687019,1713216650918,-500.0,0.0003041,7]
[322687020,1713216650929,-500.0,0.0003041,7]
[322687021,1713216650941,-500.0,0.0003041,7]
[322687022,1713216650952,-568.78119514,0.0003041,7]
[322687023,1713216650962,-500.0,0.0003041,7]
[322687024,1713216650973,-4221.01,0.0003041,7]
[322687025,1713216650984,-534.18305525,0.0003041,7]
[322687026,1713216650994,-500.0,0.0003041,7]
[322687027,1713216651005,-516.75394454,0.0003041,7]
[322687028,1713216651015,-1309.4,0.0003041,7]
[322687029,1713216651026,-500.0,0.0003041,7]
[322687030,1713216651036,-500.0,0.0003041,7]
[322687031,1713216651046,-501.78586582,0.0003041,7]
[322687032,1713216651055,-647.63,0.0003041,7]
[322687033,1713216651065,-1022.92,0.0003041,7]
[322687034,1713216651074,-929.26,0.0003041,7]
[322687035,1713216651084,-264.85867433,0.0003041,7]
[322687036,1713216651093,-500.0,0.0003041,7]
[322687037,1713216651103,-500.0,0.0003041,7]
[322687038,1713216651113,-494.76985206,0.0003041,7]
[322687039,1713216651122,-500.0,0.0003041,7]
[322687040,1713216651132,-500.0,0.0003041,7]
[322687041,1713216651148,-1564.62,0.0003041,7]
[322687042,1713216651158,-638.58,0.0003041,7]
[322687043,1713216651168,-500.0,0.0003041,7]
[322687044,1713216651179,-500.0,0.0003041,7]
[322687045,1713216651188,-500.0,0.0003041,7]
[322687046,1713216651199,-487.47362235,0.0003041,7]
[322687047,1713216651209,-672.31,0.0003041,7]
[322687048,1713216651220,-504.48065379,0.0003041,7]
[322687049,1713216651231,-500.0,0.0003041,7]
[322687050,1713216651242,-525.07877069,0.0003041,2]
[322687051,1713216651253,-500.0,0.0003041,7]
[322687052,1713216651263,-616.53,0.0003041,7]
[322687053,1713216651274,-523.24,0.0003041,7]
[322687054,1713216651284,-500.0,0.0003041,7]
[322687055,1713216651293,-738.26,0.0003041,7]
[322687056,1713216651303,-1570.31,0.0003041,7]
[322687057,1713216651314,-500.0,0.0003041,7]
[322687058,1713216651325,-166.666666,0.00030603,2]
[322687059,1713216651336,-185.75210249,0.00030683,10]
[322687060,1713216651346,-500.0,0.00030684,7]
[322687061,1713216651356,-500.0,0.00030684,7]
[322687062,1713216651372,-500.0,0.00030684,7]
[322687063,1713216651382,-500.0,0.00030684,7]
[322687064,1713216651394,-500.0,0.00030684,7]
[322687065,1713216651403,-500.0,0.00030684,7]
[322687066,1713216651413,-500.0,0.00030684,7]
[322687067,1713216651422,-500.0,0.00030684,7]
[322687068,1713216651431,-500.0,0.00030684,7]
[322687069,1713216651441,-500.0,0.00030684,7]
[322687070,1713216651450,-500.0,0.00030684,7]
[322687071,1713216651459,-500.0,0.00030684,7]
[322687072,1713216651469,-500.0,0.00030684,7]
[322687073,1713216651480,-500.0,0.00030684,7]
[322687074,1713216651489,-2533.21,0.00030684,7]
[322687075,1713216651498,-502.41762559,0.00030684,7]
[322687076,1713216651510,-500.0,0.00030684,7]
[322687077,1713216651519,-500.0,0.00030684,7]
[322687078,1713216651528,-500.0,0.00030684,7]
[322687079,1713216651538,-500.0,0.00030684,7]
[322687080,1713216651547,-1584.12,0.00030684,7]
[322687081,1713216651556,-513.75,0.00030684,7]
[322687082,1713216651566,-566.27547528,0.00030684,7]
[322687083,1713216651576,-584.0,0.00030684,7]
[322687084,1713216651585,-532.57,0.00030684,7]
[322687085,1713216651595,-1152.34,0.00030684,7]
[322687086,1713216651604,-500.0,0.00030684,7]
[322687087,1713216651614,-500.0,0.00030684,7]
[322687088,1713216651623,-1196.07,0.00030684,7]
[322687089,1713216651634,-300.0,0.00030684,7]
[322687090,1713216651647,-500.0,0.00030684,7]
[322687091,1713216651658,-500.0,0.00030684,7]
[322687092,1713216651668,-908.64,0.00030684,7]
[322687093,1713216651679,-500.0,0.00030684,7]
[322687094,1713216651689,-831.76,0.00030684,7]
[322687095,1713216651699,-500.0,0.00030684,7]
[322687096,1713216651709,-500.0,0.00030684,7]
[322687097,1713216651718,-627.19,0.00030684,7]
[322687098,1713216651728,-500.0,0.00030684,7]
[322687099,1713216651737,-500.0,0.00030684,7]
[322687100,1713216651748,-2331.33,0.00030684,7]
[322687101,1713216651758,-500.0,0.00030684,7]
[322687102,1713216651768,-500.0,0.00030684,7]
[322687103,1713216651778,-500.0,0.00030684,7]
[322687104,1713216651789,-1242.66,0.00030684,7]
[322687105,1713216651799,-747.21,0.00030684,7]
[322687106,1713216651809,-500.0,0.00030684,7]
[322687107,1713216651820,-500.0,0.00030684,7]
[322687108,1713216651830,-500.0,0.00030684,7]
[322687109,1713216651839,-500.0,0.00030684,7]
[322687110,1713216651850,-500.0,0.00030684,7]
[322687111,1713216651861,-500.0,0.00030684,7]
[322687112,1713216651871,-500.0,0.00030684,7]
[322687113,1713216651881,-500.0,0.00030684,7]
[322687114,1713216651978,-500.0,0.00030684,7]
[322687115,1713216651989,-500.0,0.00030684,7]
[322687116,1713216652000,-400.07968597,0.00030684,7]
[322687117,1713216652010,-500.0,0.00030684,7]
[322687118,1713216652019,-362.90591462,0.00030684,7]
[322687119,1713216652029,-500.0,0.00030684,7]
[322687120,1713216652038,-500.0,0.00030684,7]
[322687121,1713216652049,-500.0,0.00030684,7]
[322687122,1713216652059,-500.0,0.00030684,7]
[322687123,1713216652069,-1342.91,0.00030684,7]
[322687124,1713216652079,-500.0,0.00030684,7]
[322687125,1713216652088,-972.7,0.00030684,7]
[322687126,1713216652097,-500.0,0.00030684,7]
[322687127,1713216652106,-500.0,0.00030684,7]
[322687128,1713216652116,-500.0,0.00030684,7]
[322687129,1713216652126,-500.0,0.00030684,7]
[322687130,1713216652136,-500.0,0.00030684,7]
[322687131,1713216652148,-1949.72,0.00030684,7]
[322687132,1713216652158,-506.27598173,0.00030684,7]
[322687133,1713216652168,-500.0,0.00030684,7]
[322687134,1713216652177,-500.0,0.00030684,7]
[322687135,1713216652187,-657.8,0.00030684,7]
[322687136,1713216652197,-500.0,0.00030684,7]
[322687137,1713216652206,-500.0,0.00030684,7]
[322687138,1713216652215,-500.0,0.00030684,7]
[322687139,1713216652224,-500.0,0.00030684,7]
[322687140,1713216652235,-1354.02,0.00030684,7]
[322687141,1713216652245,-500.0,0.00030684,7]
[322687142,1713216652254,-500.0,0.00030684,7]
[322687143,1713216652263,-627.68,0.00030684,7]
[322687144,1713216652272,-500.0,0.00030684,7]
[322687145,1713216652283,-166.88649042,0.00030684,7]
[322687146,1713216652293,-500.0,0.00030684,7]
[322687147,1713216652303,-500.0,0.00030684,7]
[322687148,1713216652314,-500.0,0.00030684,7]
[322687149,1713216652324,-813.66,0.00030684,7]
[322687150,1713216652334,-531.34,0.00030684,7]
[322687151,1713216652343,-500.0,0.00030684,7]
[322687152,1713216652352,-500.0,0.00030684,7]
[322687153,1713216652361,-500.0,0.00030684,7]
[322687154,1713216652371,-500.0,0.00030684,7]
[322687155,1713216652380,-500.0,0.00030684,7]
[322687156,1713216652391,-721.09,0.00030684,7]
[322687157,1713216652401,-339.9345852,0.00030684,7]
[322687158,1713216652410,-500.0,0.00030684,7]
[322687159,1713216652418,-500.0,0.00030684,7]
[322687160,1713216652427,-500.0,0.00030684,7]
[322687161,1713216652436,-500.0,0.00030684,7]
[322687162,1713216652446,-500.0,0.00030684,7]
[322687163,1713216652455,-494.29915321,0.00030684,7]
[322687164,1713216652465,-500.0,0.00030684,7]
[322687165,1713216652475,-1816.85,0.00030684,7]
[322687166,1713216652484,-500.0,0.00030684,7]
[322687167,1713216652493,-500.0,0.00030684,7]
[322687168,1713216652503,-500.0,0.00030684,7]
[322687169,1713216652512,-500.0,0.00030684,7]
[322687170,1713216652523,-500.0,0.00030684,7]
[322687171,1713216652533,-500.0,0.00030684,7]
[322687172,1713216652543,-500.0,0.00030684,7]
[322687173,1713216652553,-512.6,0.00030684,7]
[322687174,1713216652563,-500.0,0.00030684,7]
[322687175,1713216652573,-500.0,0.00030684,7]
[322687176,1713216652583,-500.0,0.00030684,7]
[322687177,1713216652593,-500.0,0.00030684,7]
[322687178,1713216652603,-500.0,0.00030684,7]
[322687179,1713216652613,-500.0,0.00030684,7]
[322687180,1713216652623,-500.0,0.00030684,7]
[322687181,1713216652633,-500.0,0.00030684,7]
[322687182,1713216652646,-665.2,0.00030684,7]
[322687183,1713216652655,-500.0,0.00030684,7]
[322687184,1713216652664,-1154.45,0.00030684,7]
[322687185,1713216652673,-10622.9,0.00030684,7]
[322687186,1713216652683,-500.0,0.00030684,7]
[322687187,1713216652692,-500.0,0.00030684,7]
[322687188,1713216652701,-566.16,0.00030684,7]
[322687189,1713216652710,-500.0,0.00030684,7]
[322687190,1713216652720,-1042.35,0.00030684,7]
[322687191,1713216652730,-500.0,0.00030684,7]
[322687192,1713216652741,-500.0,0.00030684,7]
[322687193,1713216652753,-500.0,0.00030684,7]
[322687194,1713216652763,-500.89219227,0.00030684,7]
[322687195,1713216652772,-500.0,0.00030684,7]
[322687196,1713216652782,-500.0,0.00030684,7]
[322687197,1713216652791,-979.8,0.00030684,7]
[322687198,1713216652801,-489.64851524,0.00030684,7]
[322687199,1713216652810,-1728.93,0.00030684,7]
[322687200,1713216652819,-585.29,0.00030684,7]
[322687201,1713216652829,-500.0,0.00030684,7]
[322687202,1713216652840,-429.68498643,0.00030684,7]
[322687203,1713216652851,-500.0,0.00030684,7]
[322687204,1713216652861,-500.0,0.00030684,7]
[322687205,1713216652871,-500.0,0.00030684,7]
[322687206,1713216652882,-500.0,0.00030684,7]
[322687207,1713216652893,-1468.32,0.00030684,7]
[322687208,1713216652903,-3217.3,0.00030684,7]
[322687209,1713216652913,-3523.19,0.00030684,7]
[322687210,1713216652924,-674.67,0.00030684,7]
[322687211,1713216652934,-2157.72,0.00030684,7]
[322687212,1713216652944,-500.0,0.00030684,7]
[322687213,1713216652954,-500.0,0.00030684,7]
[322687214,1713216652963,-500.0,0.00030684,7]
[322687215,1713216652973,-500.0,0.00030684,7]
[322687216,1713216652984,-769.15,0.00030684,7]
[322687217,1713216652993,-917.18,0.00030684,7]
[322687218,1713216653004,-500.0,0.00030684,7]
[322687219,1713216653014,-500.0,0.00030684,7]
[322687220,1713216653024,-619.3414708,0.00030684,7]
[322687221,1713216653035,-1043.14,0.00030684,7]
[322687222,1713216653046,-500.0,0.00030684,7]
[322687223,1713216653055,-667.49,0.00030684,7]
[322687224,1713216653064,-500.0,0.00030684,7]
[322687225,1713216653073,-500.0,0.00030684,7]
[322687226,1713216653082,-500.0,0.00030684,7]
[322687227,1713216653091,-500.0,0.00030684,7]
[322687228,1713216653099,-1869.83,0.00030684,7]
[322687229,1713216653108,-504.60059948,0.00030684,7]
[322687230,1713216653117,-677.13,0.00030684,7]
[322687231,1713216653126,-500.0,0.00030684,7]
[322687232,1713216653135,-500.0,0.00030684,7]
[322687233,1713216653147,-250.96343381,0.00030684,7]
[322687234,1713216653156,-1188.94,0.00030684,7]
[322687235,1713216653166,-500.0,0.00030684,7]
[322687236,1713216653175,-1389.26,0.00030684,7]
[322687237,1713216653185,-602.03,0.00030684,7]
[322687238,1713216653195,-500.0,0.00030684,7]
[322687239,1713216653205,-16462.66,0.00030684,7]
[322687240,1713216653217,-500.0,0.00030684,7]
[322687241,1713216653228,-2347.59,0.00030684,7]
[322687242,1713216653241,-500.0,0.00030684,7]
[322687243,1713216653251,-226.78508684,0.00030684,7]
[322687244,1713216653261,-500.0,0.00030684,7]
[322687245,1713216653271,-500.0,0.00030684,7]
[322687246,1713216653280,-500.0,0.00030684,7]
[322687247,1713216653291,-500.0,0.00030684,7]
[322687248,1713216653301,-500.0,0.00030684,7]
[322687249,1713216653312,-896.24,0.00030684,7]
[322687250,1713216653322,-2385.91,0.00030684,7]
[322687251,1713216653332,-614.43,0.00030684,7]
[322687252,1713216653342,-500.0,0.00030684,7]
[322687253,1713216653352,-973.46,0.00030684,7]
[322687254,1713216653362,-501.88530257,0.00030684,7]
[322687255,1713216653372,-500.0,0.00030684,7]
[322687256,1713216653381,-904.17,0.00030684,7]
[322687257,1713216653393,-946.87,0.00030684,7]
[322687258,1713216653403,-500.0,0.00030684,7]
[322687259,1713216653413,-785.29,0.00030684,7]
[322687260,1713216653439,-500.0,0.00030684,7]
[322687261,1713216653451,-500.0,0.00030684,7]
[322687262,1713216653463,-500.0,0.00030684,7]
[322687263,1713216653474,-500.0,0.00030684,7]
[322687264,1713216653484,-4221.01,0.00030684,7]
[322687265,1713216653495,-500.0,0.00030684,7]
[322687266,1713216653506,-1309.4,0.00030684,7]
[322687267,1713216653661,-502.30167906,0.00030684,7]
[322687268,1713216653679,-647.63,0.00030684,7]
[322687269,1713216653689,-1022.92,0.00030684,7]
[322687270,1713216653698,-929.26,0.00030684,7]
[322687271,1713216653707,-500.0,0.00030684,7]
[322687272,1713216653716,-503.32441188,0.00030684,7]
[322687273,1713216653725,-500.0,0.00030684,7]
[322687274,1713216653734,-1564.62,0.00030684,7]
[322687275,1713216653744,-638.58,0.00030684,7]
[322687276,1713216653753,-177.53162993,0.00030684,7]
[322687277,1713216653762,-500.0,0.00030684,7]
[322687278,1713216653771,-500.0,0.00030684,7]
[322687279,1713216653780,-672.31,0.00030684,7]
[322687280,1713216653795,-500.0,0.00030684,7]
[322687281,1713216653817,-500.0,0.00030684,7]
[322687282,1713216653827,-616.53,0.00030684,7]
[322687283,1713216653836,-523.24,0.00030684,7]
[322687284,1713216653845,-350.95301132,0.00030684,7]
[322687285,1713216653854,-738.26,0.00030684,7]
[322687286,1713216653863,-1570.31,0.00030684,7]
[322687287,1713216653872,-500.0,0.00030684,7]
[322687288,1713216653882,-205.0,0.0003069,2]
[322687289,1713216653892,-299.76947038,0.00030958,7]
[322687290,1713216653902,-500.0,0.00030958,7]
[322687291,1713216653911,-500.0,0.00030958,7]
[322687292,1713216653921,-500.0,0.00030958,7]
[322687293,1713216653930,-500.0,0.00030958,7]
[322687294,1713216653939,-500.0,0.00030958,7]
[322687295,1713216653948,-500.0,0.00030958,7]
[322687296,1713216653957,-500.0,0.00030958,7]
[322687297,1713216653966,-500.0,0.00030958,7]
[322687298,1713216653975,-500.0,0.00030958,7]
[322687299,1713216653984,-442.348002,0.00030958,7]
[322687300,1713216653993,-500.0,0.00030958,7]
[322687301,1713216654002,-428.61526064,0.00030958,7]
[322687302,1713216654011,-214.36875898,0.00030958,7]
[322687303,1713216654020,-2533.21,0.00030958,7]
[322687304,1713216654030,-500.0,0.00030958,7]
[322687305,1713216654039,-500.0,0.00030958,7]
[322687306,1713216654048,-500.0,0.00030958,7]
[322687307,1713216654057,-500.0,0.00030958,7]
[322687308,1713216654066,-1584.12,0.00030958,7]
[322687309,1713216654075,-513.75,0.00030958,7]
[322687310,1713216654085,-584.0,0.00030958,7]
[322687311,1713216654095,-532.57,0.00030958,7]
[322687312,1713216654104,-1152.34,0.00030958,7]
[322687313,1713216654113,-500.0,0.00030958,7]
[322687314,1713216654122,-500.0,0.00030958,7]
[322687315,1713216654131,-1196.07,0.00030958,7]
[322687316,1713216654140,-246.130495,0.00030958,7]
[322687317,1713216654150,-500.0,0.00030958,7]
[322687318,1713216654159,-261.11522902,0.00030958,7]
[322687319,1713216654168,-908.64,0.00030958,7]
[322687320,1713216654177,-500.0,0.00030958,7]
[322687321,1713216654187,-831.76,0.00030958,7]
[322687322,1713216654196,-500.0,0.00030958,7]
[322687323,1713216654205,-500.0,0.00030958,7]
[322687324,1713216654214,-627.19,0.00030958,7]
[322687325,1713216654223,-500.0,0.00030958,7]
[322687326,1713216654233,-500.0,0.00030958,7]
[322687327,1713216654243,-2331.33,0.00030958,7]
[322687328,1713216654253,-500.0,0.00030958,7]
[322687329,1713216654262,-500.0,0.00030958,7]
[322687330,1713216654270,-500.0,0.00030958,7]
[322687331,1713216654280,-1242.66,0.00030958,7]
[322687332,1713216654290,-747.21,0.00030958,7]
[322687333,1713216654299,-500.0,0.00030958,7]
[322687334,1713216654308,-500.0,0.00030958,7]
[322687335,1713216654319,-500.0,0.00030958,7]
[322687336,1713216654329,-500.0,0.00030958,7]
[322687337,1713216654338,-500.0,0.00030958,7]
[322687338,1713216654347,-500.0,0.00030958,7]
[322687339,1713216654356,-349.79483666,0.00030958,7]
[322687340,1713216654365,-217.98522999,0.00030958,7]
[322687341,1713216654374,-154.78905102,0.00030958,7]
[322687342,1713216654383,-500.0,0.00030958,7]
[322687343,1713216654393,-500.0,0.00030958,7]
[322687344,1713216654402,-500.0,0.00030958,7]
[322687345,1713216654410,-500.0,0.00030958,7]
[322687346,1713216654419,-500.0,0.00030958,7]
[322687347,1713216654428,-150.68989415,0.00030958,7]
[322687348,1713216654437,-1342.91,0.00030958,7]
[322687349,1713216654446,-500.0,0.00030958,7]
[322687350,1713216654455,-972.7,0.00030958,7]
[322687351,1713216654464,-500.0,0.00030958,7]
[322687352,1713216654474,-500.0,0.00030958,7]
[322687353,1713216654483,-500.0,0.00030958,7]
[322687354,1713216654492,-500.0,0.00030958,7]
[322687355,1713216654501,-500.0,0.00030958,7]
[322687356,1713216654510,-1949.72,0.00030958,7]
[322687357,1713216654519,-274.05696926,0.00030958,7]
[322687358,1713216654528,-500.0,0.00030958,7]
[322687359,1713216654537,-657.8,0.00030958,7]
[322687360,1713216654546,-500.0,0.00030958,7]
[322687361,1713216654556,-377.25150387,0.00030958,7]
[322687362,1713216654565,-500.0,0.00030958,7]
[322687363,1713216654574,-500.0,0.00030958,7]
[322687364,1713216654583,-1354.02,0.00030958,7]
[322687365,1713216654592,-500.0,0.00030958,7]
[322687366,1713216654601,-500.0,0.00030958,7]
[322687367,1713216654610,-500.0,0.00030958,7]
[322687368,1713216654619,-627.68,0.00030958,7]
[322687369,1713216654628,-500.0,0.00030958,7]
[322687370,1713216654637,-500.0,0.00030958,7]
[322687371,1713216654647,-500.0,0.00030958,7]
[322687372,1713216654657,-813.66,0.00030958,7]
[322687373,1713216654666,-531.34,0.00030958,7]
[322687374,1713216654675,-430.42685716,0.00030958,7]
[322687375,1713216654684,-500.0,0.00030958,7]
[322687376,1713216654693,-500.0,0.00030958,7]
[322687377,1713216654702,-500.0,0.00030958,7]
[322687378,1713216654711,-500.0,0.00030958,7]
[322687379,1713216654720,-721.09,0.00030958,7]
[322687380,1713216654729,-500.0,0.00030958,7]
[322687381,1713216654738,-500.0,0.00030958,7]
[322687382,1713216654747,-311.28701398,0.00030958,7]
[322687383,1713216654756,-500.0,0.00030958,7]
[322687384,1713216654765,-500.0,0.00030958,7]
[322687385,1713216654774,-500.0,0.00030958,7]
[322687386,1713216654783,-1816.85,0.00030958,7]
[322687387,1713216654792,-500.0,0.00030958,7]
[322687388,1713216654801,-648.61978251,0.00030958,7]
[322687389,1713216654810,-213.19267866,0.00030958,7]
[322687390,1713216654819,-500.0,0.00030958,7]
[322687391,1713216654829,-500.0,0.00030958,7]
[322687392,1713216654838,-500.0,0.00030958,7]
[322687393,1713216654847,-500.0,0.00030958,7]
[322687394,1713216654856,-512.6,0.00030958,7]
[322687395,1713216654865,-500.0,0.00030958,7]
[322687396,1713216654874,-523.18337251,0.00030958,7]
[322687397,1713216654883,-500.0,0.00030958,7]
[322687398,1713216654894,-500.0,0.00030958,7]
[322687399,1713216654903,-500.0,0.00030958,7]
[322687400,1713216654911,-501.0507483,0.00030958,7]
[322687401,1713216654920,-510.03584838,0.00030958,7]
[322687402,1713216654929,-500.0,0.00030958,7]
[322687403,1713216654938,-665.2,0.00030958,7]
[322687404,1713216654947,-500.0,0.00030958,7]
[322687405,1713216654957,-1154.45,0.00030958,7]
[322687406,1713216654966,-10622.9,0.00030958,7]
[322687407,1713216654975,-500.0,0.00030958,7]
[322687408,1713216654984,-503.10495088,0.00030958,7]
[322687409,1713216655067,-566.16,0.00030958,7]
[322687410,1713216655076,-198.09323563,0.00030958,7]
[322687411,1713216655086,-1042.35,0.00030958,7]
[322687412,1713216655095,-500.0,0.00030958,7]
[322687413,1713216655104,-500.0,0.00030958,7]
[322687414,1713216655113,-500.0,0.00030958,7]
[322687415,1713216655123,-500.0,0.00030958,7]
[322687416,1713216655131,-500.0,0.00030958,7]
[322687417,1713216655140,-979.8,0.00030958,7]
[322687418,1713216655149,-1728.93,0.00030958,7]
[322687419,1713216655158,-585.29,0.00030958,7]
[322687420,1713216655167,-649.48781285,0.00030958,7]
[322687421,1713216655176,-500.0,0.00030958,7]
[322687422,1713216655185,-500.0,0.00030958,7]
[322687423,1713216655195,-500.0,0.00030958,7]
[322687424,1713216655204,-500.0,0.00030958,7]
[322687425,1713216655213,-1468.32,0.00030958,7]
[322687426,1713216655225,-3217.3,0.00030958,7]
[322687427,1713216655234,-3523.19,0.00030958,7]
[322687428,1713216655244,-674.67,0.00030958,7]
[322687429,1713216655253,-2157.72,0.00030958,7]
[322687430,1713216655262,-500.0,0.00030958,7]
[322687431,1713216655271,-500.0,0.00030958,7]
[322687432,1713216655279,-500.0,0.00030958,7]
[322687433,1713216655288,-500.0,0.00030958,7]
[322687434,1713216655298,-769.15,0.00030958,7]
[322687435,1713216655310,-917.18,0.00030958,7]
[322687436,1713216655320,-500.0,0.00030958,7]
[322687437,1713216655330,-500.0,0.00030958,7]
[322687438,1713216655339,-1043.14,0.00030958,7]
[322687439,1713216655349,-500.0,0.00030958,7]
[322687440,1713216655359,-667.49,0.00030958,7]
[322687441,1713216655368,-500.0,0.00030958,7]
[322687442,1713216655377,-500.0,0.00030958,7]
[322687443,1713216655386,-500.0,0.00030958,7]
[322687444,1713216655398,-160.25242926,0.00030958,7]
[322687445,1713216655408,-1869.83,0.00030958,7]
[322687446,1713216655417,-677.13,0.00030958,7]
[322687447,1713216655426,-500.0,0.00030958,7]
[322687448,1713216655435,-500.0,0.00030958,7]
[322687449,1713216655444,-1188.94,0.00030958,7]
[322687450,1713216655453,-500.0,0.00030958,7]
[322687451,1713216655463,-1389.26,0.00030958,7]
[322687452,1713216655471,-602.03,0.00030958,7]
[322687453,1713216655480,-500.0,0.00030958,7]
[322687454,1713216655489,-16462.66,0.00030958,7]
[322687455,1713216655498,-500.0,0.00030958,7]
[322687456,1713216655507,-2347.59,0.00030958,7]
[322687457,1713216655516,-500.0,0.00030958,7]
[322687458,1713216655525,-500.0,0.00030958,7]
[322687459,1713216655535,-500.0,0.00030958,7]
[322687460,1713216655544,-500.0,0.00030958,7]
[322687461,1713216655553,-500.0,0.00030958,7]
[322687462,1713216655562,-500.0,0.00030958,7]
[322687463,1713216655571,-896.24,0.00030958,7]
[322687464,1713216655580,-2385.91,0.00030958,7]
[322687465,1713216655589,-614.43,0.00030958,7]
[322687466,1713216655598,-500.0,0.00030958,7]
[322687467,1713216655607,-973.46,0.00030958,7]
[322687468,1713216655616,-500.0,0.00030958,7]
[322687469,1713216655625,-904.17,0.00030958,7]
[322687470,1713216655634,-946.87,0.00030958,7]
[322687471,1713216655645,-500.0,0.00030958,7]
[322687472,1713216655654,-785.29,0.00030958,7]
[322687473,1713216655662,-500.0,0.00030958,7]
[322687474,1713216655672,-500.0,0.00030958,7]
[322687475,1713216655681,-500.0,0.00030958,7]
[322687476,1713216655688,-500.0,0.00030958,7]
[322687477,1713216655697,-4221.01,0.00030958,7]
[322687478,1713216655706,-359.21424175,0.00030958,7]
[322687479,1713216655715,-1309.4,0.00030958,7]
[322687480,1713216655724,-647.63,0.00030958,7]
[322687481,1713216655733,-1022.92,0.00030958,7]
[322687482,1713216655742,-929.26,0.00030958,7]
[322687483,1713216655751,-500.0,0.00030958,7]
[322687484,1713216655760,-500.0,0.00030958,7]
[322687485,1713216655770,-1564.62,0.00030958,7]
[322687486,1713216655780,-638.58,0.00030958,7]
[322687487,1713216655791,-500.0,0.00030958,7]
[322687488,1713216655800,-315.08188368,0.00030958,7]